fUST/lending_fUST_20250614
["ID","MTS","AMOUNT","RATE_DAILY","PERIOD"]
[365720516,1749851438857,-430.0,0.00021365,4]
[365720517,1749851438866,-772.81,0.00021365,4]
[365720518,1749851438876,-440.0,0.00021365,4]
[365720519,1749851438886,-460.0,0.00021365,4]
[365720520,1749851438896,-440.0,0.00021365,4]
[365720521,1749851438906,-440.0,0.00021365,4]
[365720522,1749851438915,-400.0,0.00021365,4]
[365720523,1749851438924,-440.0,0.00021365,4]
[365720524,1749851438934,-460.0,0.00021365,4]
[365720525,1749851438943,-440.0,0.00021365,4]
[365720526,1749851438952,-555.09,0.00021365,4]
[365720527,1749851438962,-440.0,0.00021365,4]
[365720528,1749851438971,-465.97800127,0.00021365,4]
[365720529,1749851438980,-460.0,0.00021365,4]
[365720530,1749851438991,-440.0,0.00021365,4]
[365720531,1749851439000,-742.63,0.00021365,4]
[365720532,1749851439010,-440.0,0.00021365,4]
[365720533,1749851439019,-460.0,0.00021365,4]
[365720534,1749851439029,-440.0,0.00021365,4]
[365720535,1749851439038,-460.0,0.00021365,4]
[365720536,1749851439047,-430.0,0.00021365,4]
[365720537,1749851439056,-460.0,0.00021365,4]
[365720538,1749851439066,-430.0,0.00021365,4]
[365720539,1749851439075,-440.0,0.00021365,4]
[365720540,1749851439084,-420.0,0.00021365,4]
[365720541,1749851439094,-460.0,0.00021365,4]
[365720542,1749851439103,-440.0,0.00021365,4]
[365720543,1749851439112,-501.74828482,0.00021365,4]
[365720544,1749851439121,-289.79,0.00021365,4]
[365720545,1749851439131,-440.0,0.00021365,4]
[365720547,1749851439262,-440.0,0.00021365,4]
[365720548,1749851439274,-462.51408139,0.00021365,4]
[365720549,1749851439284,-440.0,0.00021365,4]
[365720550,1749851439294,-460.0,0.00021365,4]
[365720551,1749851439305,-460.0,0.00021365,4]
[365720552,1749851439314,-440.0,0.00021365,4]
[365720553,1749851439325,-460.0,0.00021365,4]
[365720554,1749851439334,-440.0,0.00021365,4]
[365720555,1749851439345,-192.77119048,0.00021365,4]
[365720556,1749851439355,-430.0,0.00021365,4]
[365720557,1749851439365,-440.0,0.00021365,4]
[365720558,1749851439374,-430.0,0.00021365,4]
[365720559,1749851439383,-400.0,0.00021365,4]
[365720560,1749851439393,-430.0,0.00021365,4]
[365720561,1749851439404,-195.83381847,0.00021365,4]
[365720562,1749851439413,-430.0,0.00021365,4]
[365720563,1749851439422,-460.0,0.00021365,4]
[365720564,1749851439432,-430.0,0.00021365,4]
[365720565,1749851439442,-430.0,0.00021365,4]
[365720566,1749851439451,-663.68,0.00021365,4]
[365720567,1749851439460,-430.0,0.00021365,4]
[365720568,1749851439469,-430.0,0.00021365,4]
[365720569,1749851439479,-440.0,0.00021365,4]
[365720570,1749851439489,-350.0,0.00021365,4]
[365720571,1749851439499,-440.0,0.00021365,4]
[365720572,1749851439508,-440.0,0.00021365,4]
[365720573,1749851439517,-396.60074128,0.00021365,4]
[365720574,1749851439527,-440.0,0.00021365,4]
[365720575,1749851439536,-440.0,0.00021365,4]
[365720576,1749851439545,-500.0,0.00021365,4]
[365720577,1749851439554,-440.0,0.00021365,4]
[365720578,1749851439563,-460.0,0.00021365,4]
[365720579,1749851439573,-460.0,0.00021365,4]
[365720580,1749851439582,-433.07761456,0.00021365,4]
[365720581,1749851439591,-460.0,0.00021365,4]
[365720582,1749851439600,-460.0,0.00021365,4]
[365720583,1749851439609,-460.0,0.00021365,4]
[365720584,1749851439619,-430.0,0.00021365,4]
[365720585,1749851439628,-476.38897664,0.00021366,4]
[365720586,1749851439638,-430.0,0.00021366,4]
[365720587,1749851439647,-430.0,0.00021366,4]
[365720588,1749851439657,-430.0,0.00021366,4]
[365720589,1749851439666,-430.0,0.00021366,4]
[365720590,1749851439676,-460.0,0.00021366,4]
[365720591,1749851439686,-587.8728,0.00021366,4]
[365720592,1749851439695,-370.0,0.00021366,4]
[365720593,1749851439704,-420.0,0.00021366,4]
[365720594,1749851439714,-460.0,0.00021366,4]
[365720595,1749851439723,-460.0,0.00021366,4]
[365720596,1749851439733,-423.91614142,0.00021366,4]
[365720597,1749851439744,-420.0,0.00021366,4]
[365720598,1749851439754,-460.0,0.00021366,4]
[365720599,1749851439763,-460.0,0.00021366,4]
[365720600,1749851439773,-500.0,0.00021366,4]
[365720601,1749851439782,-430.0,0.00021366,4]
[365720602,1749851439791,-430.0,0.00021366,4]
[365720603,1749851439801,-460.0,0.00021366,4]
[365720604,1749851439810,-440.0,0.00021366,4]
[365720605,1749851439819,-430.0,0.00021366,4]
[365720606,1749851439828,-462.59932241,0.00021366,4]
[365720607,1749851439838,-410.0,0.00021366,4]
[365720608,1749851439847,-440.0,0.00021366,4]
[365720609,1749851439856,-440.0,0.00021366,4]
[365720610,1749851439866,-430.0,0.00021366,4]
[365720611,1749851439875,-423.22277393,0.00021366,4]
[365720612,1749851439884,-440.0,0.00021366,4]
[365720613,1749851439893,-430.0,0.00021366,4]
[365720614,1749851439903,-460.0,0.00021366,4]
[365720615,1749851439912,-460.0,0.00021366,4]
[365720616,1749851439920,-430.0,0.00021366,4]
[365720617,1749851439930,-430.0,0.00021366,4]
[365720618,1749851439940,-430.0,0.00021366,4]
[365720619,1749851439950,-430.0,0.00021366,4]
[365720620,1749851439959,-400.0,0.00021366,4]
[365720621,1749851439968,-460.0,0.00021366,4]
[365720622,1749851439978,-440.0,0.00021366,4]
[365720623,1749851439988,-440.0,0.00021366,4]
[365720624,1749851439998,-430.0,0.00021366,4]
[365720625,1749851440007,-433.88538816,0.00021366,4]
[365720626,1749851440016,-430.0,0.00021366,4]
[365720627,1749851440026,-460.0,0.00021366,4]
[365720628,1749851440035,-460.0,0.00021366,4]
[365720629,1749851440044,-440.0,0.00021366,4]
[365720630,1749851440054,-460.0,0.00021366,4]
[365720631,1749851440063,-460.0,0.00021366,4]
[365720632,1749851440072,-460.0,0.00021366,4]
[365720633,1749851440081,-460.0,0.00021366,4]
[365720634,1749851440091,-460.0,0.00021366,4]
[365720635,1749851440100,-826.54,0.00021366,4]
[365720636,1749851440109,-475.3581481,0.00021366,4]
[365720637,1749851440119,-2683.47398,0.00021638,2]
[365720638,1749851440129,-477.0,0.00021638,4]
[365720639,1749851440138,-2922.55,0.00021638,4]
[365720640,1749851440147,-460.0,0.00021638,4]
[365720641,1749851440157,-486.1,0.00021638,4]
[365720642,1749851440166,-772.81,0.00021639,4]
[365720644,1749851440175,-555.09,0.00021639,4]
[365720646,1749851440184,-742.63,0.00021639,4]
[365720648,1749851440193,-460.0,0.00021639,4]
[365720650,1749851440203,-460.0,0.00021639,4]
[365720652,1749851440213,-460.0,0.00021639,4]
[365720654,1749851440223,-460.0,0.00021639,4]
[365720656,1749851440232,-663.68,0.00021639,4]
[365720658,1749851440242,-460.0,0.00021639,4]
[365720660,1749851440251,-460.0,0.00021639,4]
[365720662,1749851440260,-460.0,0.00021639,4]
[365720664,1749851440272,-460.0,0.0002164,4]
[365720666,1749851440282,-460.0,0.0002164,4]
[365720668,1749851440292,-460.0,0.0002164,4]
[365720670,1749851440302,-460.0,0.0002164,4]
[365720672,1749851440311,-460.0,0.0002164,4]
[365720674,1749851440321,-460.0,0.0002164,4]
[365720676,1749851440330,-826.54,0.0002164,4]
[365720678,1749851440340,-1969.8521963,0.000219,6]
[365720680,1749851440350,-602.09,0.00021904,10]
[365720682,1749851440360,-477.0,0.00021912,4]
[365720684,1749851440370,-2922.55,0.00021912,4]
[365720687,1749851440380,-460.0,0.00021912,4]
[365720689,1749851440389,-486.1,0.00021912,4]
[365720690,1749851440399,-772.81,0.00021913,4]
[365720691,1749851440408,-555.09,0.00021913,4]
[365720692,1749851440417,-742.63,0.00021913,4]
[365720694,1749851440427,-460.0,0.00021913,4]
[365720696,1749851440437,-460.0,0.00021913,4]
[365720698,1749851440448,-460.0,0.00021913,4]
[365720699,1749851440466,-460.0,0.00021913,4]
[365720700,1749851440477,-663.68,0.00021913,4]
[365720701,1749851440487,-460.0,0.00021913,4]
[365720702,1749851440497,-465.89,0.00021913,4]
[365720703,1749851440507,-460.0,0.00021913,4]
[365720704,1749851440516,-182.05085615,0.00021914,4]
[365720705,1749851440526,-460.0,0.00021914,4]
[365720706,1749851440536,-460.0,0.00021914,4]
[365720707,1749851440546,-460.0,0.00021914,4]
[365720708,1749851440555,-460.0,0.00021914,4]
[365720709,1749851440564,-460.0,0.00021914,4]
[365720710,1749851440574,-826.54,0.00021914,4]
[365720711,1749851440584,-165.0,0.00022,2]
[365720712,1749851440593,-1969.85219627,0.00022003,6]
[365720713,1749851440603,-1590.09,0.000221,7]
[365720714,1749851440612,-1969.85219627,0.00022107,6]
[365720715,1749851440621,-477.0,0.00022186,4]
[365720716,1749851440632,-2922.55,0.00022186,4]
[365720717,1749851440641,-460.0,0.00022186,4]
[365720718,1749851440651,-486.1,0.00022186,4]
[365720719,1749851440660,-772.81,0.00022187,4]
[365720720,1749851440669,-555.09,0.00022187,4]
[365720721,1749851440678,-742.63,0.00022187,4]
[365720722,1749851440687,-460.0,0.00022187,4]
[365720723,1749851440696,-460.0,0.00022187,4]
[365720724,1749851440706,-460.0,0.00022187,4]
[365720725,1749851440715,-663.68,0.00022187,4]
[365720726,1749851440724,-460.0,0.00022188,4]
[365720727,1749851440735,-460.0,0.00022188,4]
[365720728,1749851440744,-460.0,0.00022188,4]
[365720729,1749851440754,-460.0,0.00022188,4]
[365720730,1749851440764,-460.0,0.00022188,4]
[365720731,1749851440773,-826.54,0.00022188,4]
[365720732,1749851440783,-1969.85219627,0.0002221,6]
[365720733,1749851440793,-484.0,0.0002223,2]
[365720734,1749851440802,-1969.85219627,0.00022314,7]
[365720735,1749851440812,-160.0,0.00022363,2]
[365720736,1749851440821,-1969.85219627,0.00022417,7]
[365720737,1749851440831,-477.0,0.0002246,4]
[365720738,1749851440840,-2922.55,0.0002246,4]
[365720739,1749851440850,-460.0,0.0002246,4]
[365720740,1749851440859,-486.1,0.0002246,4]
[365720741,1749851440871,-772.81,0.00022461,4]
[365720742,1749851440881,-555.09,0.00022461,4]
[365720743,1749851440890,-742.63,0.00022461,4]
[365720744,1749851440899,-460.0,0.00022461,4]
[365720745,1749851440909,-160.32758916,0.00022461,4]
[365720746,1749851440918,-663.68,0.00022461,4]
[365720747,1749851440928,-460.0,0.00022462,4]
[365720748,1749851440937,-460.0,0.00022462,4]
[365720749,1749851440947,-460.0,0.00022462,4]
[365720750,1749851440956,-460.0,0.00022462,4]
[365720751,1749851440966,-460.0,0.00022462,4]
[365720752,1749851440975,-826.54,0.00022462,4]
[365720753,1749851440986,-153.0,0.00022466,2]
[365720754,1749851440995,-176.9539549,0.00022466,2]
[365720755,1749851441004,-157.6971373,0.00022466,2]
[365720756,1749851441013,-928.8979797,0.00022466,2]
[365720757,1749851441024,-153.0,0.00022466,2]
[365720758,1749851441034,-158.8399287,0.00022466,2]
[365720760,1749851441044,-1147.3495832,0.00022466,2]
[365720762,1749851441053,-158.8399287,0.00022466,2]
[365720764,1749851441062,-153.0,0.00022466,2]
[365720766,1749851441071,-176.9539549,0.00022466,2]
[365720768,1749851441080,-573.6747916,0.00022466,2]
[365720770,1749851441089,-314.61110484,0.00022466,2]
[365720772,1749851441100,-484.0,0.00022478,2]
[365720774,1749851441109,-1969.85219627,0.00022521,7]
[365720776,1749851441119,-1969.85219627,0.00022624,7]
[365720778,1749851441128,-630.79,0.00022725,3]
[365720780,1749851441139,-315.39,0.00022725,3]
[365720782,1749851441149,-189.78,0.00022725,3]
[365720784,1749851441158,-731.3,0.00022725,3]
[365720786,1749851441167,-1261.57,0.00022726,3]
[365720788,1749851441176,-1969.85219627,0.00022728,7]
[365720790,1749851441186,-477.0,0.00022734,4]
[365720792,1749851441195,-2922.55,0.00022734,4]
[365720794,1749851441203,-460.0,0.00022734,4]
[365720796,1749851441212,-486.1,0.00022734,4]
[365720798,1749851441222,-772.81,0.00022735,4]
[365720800,1749851441231,-555.09,0.00022735,4]
[365720802,1749851441241,-742.63,0.00022735,4]
[365720804,1749851441250,-460.0,0.00022735,4]
[365720806,1749851441259,-663.68,0.00022735,4]
[365720808,1749851441271,-460.0,0.00022736,4]
[365720810,1749851441281,-460.0,0.00022736,4]
[365720812,1749851441290,-460.0,0.00022736,4]
[365720814,1749851441300,-460.0,0.00022736,4]
[365720816,1749851441311,-460.0,0.00022736,4]
[365720818,1749851441320,-826.54,0.00022736,4]
[365720820,1749851441330,-160.0,0.00022746,2]
[365720822,1749851441341,-1688.0,0.0002283,2]
[365720824,1749851441352,-207.4,0.0002283,2]
[365720826,1749851441361,-1969.85219627,0.00022831,8]
[365720828,1749851441371,-282.0,0.00022864,2]
[365720830,1749851441380,-1877.678872,0.00022885,2]
[365720832,1749851441390,-224.12765848,0.00022899,4]
[365720834,1749851441404,-426.30165298,0.00022899,4]
[365720836,1749851441416,-431.1523617,0.00022899,4]
[365720838,1749851441427,-1969.85219627,0.00022934,8]
[365720840,1749851441436,-151.0,0.00022986,2]
[365720842,1749851441446,-151.0,0.00022986,2]
[365720844,1749851441455,-270.98328894,0.00022986,2]
[365720846,1749851441465,-5000.0,0.00022986,2]
[365720848,1749851441474,-500.0,0.00022986,2]
[365720850,1749851441484,-500.0,0.00022986,2]
[365720852,1749851441493,-500.0,0.00022986,2]
[365720854,1749851441503,-500.0,0.00022986,2]
[365720856,1749851441512,-500.0,0.00022986,2]
[365720858,1749851441521,-500.0,0.00022986,2]
[365720860,1749851441530,-500.0,0.00022986,2]
[365720862,1749851441540,-500.0,0.00022986,2]
[365720864,1749851441549,-500.0,0.00022986,2]
[365720866,1749851441558,-500.0,0.00022986,2]
[365720868,1749851441568,-500.0,0.00022986,2]
[365720870,1749851441577,-500.0,0.00022986,2]
[365720872,1749851441589,-500.0,0.00022986,2]
[365720874,1749851441598,-500.0,0.00022986,2]
[365720876,1749851441607,-500.0,0.00022986,2]
[365720878,1749851441616,-213.24139183,0.00023,3]
[365720890,1749851441720,-503.48503408,0.00023,2]
[365720892,1749851441729,-500.0,0.00023,2]
[365720894,1749851441740,-477.0,0.00023008,4]
[365720896,1749851441750,-2922.55,0.00023008,4]
[365720898,1749851441760,-460.0,0.00023008,4]
[365720900,1749851441769,-486.1,0.00023008,4]
[365720902,1749851441778,-153.0,0.00023009,2]
[365720904,1749851441787,-772.81,0.00023009,4]
[365720905,1749851441796,-555.09,0.00023009,4]
[365720908,1749851441806,-742.63,0.00023009,4]
[365720909,1749851441815,-460.0,0.00023009,4]
[365720911,1749851441824,-663.68,0.00023009,4]
[365720913,1749851441833,-460.0,0.0002301,4]
[365720915,1749851441843,-460.0,0.0002301,4]
[365720917,1749851441852,-373.21,0.0002301,4]
[365720920,1749851441862,-460.0,0.0002301,4]
[365720922,1749851441871,-460.0,0.0002301,4]
[365720924,1749851441881,-826.54,0.0002301,4]
[365720926,1749851441890,-438.26093489,0.00023026,2]
[365720928,1749851441899,-1969.85219627,0.00023038,8]
[365720930,1749851441908,-160.0,0.00023136,2]
[365720932,1749851441917,-835.28007164,0.00023136,2]
[365720934,1749851441926,-160.0,0.00023136,2]
[365720936,1749851441935,-1969.85219627,0.00023141,8]
[365720938,1749851441944,-169.84845864,0.00023184,2]
[365720939,1749851441954,-160.0,0.00023185,2]
[365720942,1749851441963,-160.0,0.00023185,2]
[365720944,1749851441972,-1590.09,0.000232,7]
[365720946,1749851441982,-282.0,0.00023218,2]
[365720948,1749851441993,-213.24139183,0.00023219,2]
[365720950,1749851442003,-160.0,0.00023219,2]
[365720952,1749851442012,-424.32678023,0.00023219,2]
[365720954,1749851442021,-229.78555783,0.00023219,2]
[365720956,1749851442030,-420.0,0.0002323,2]
[365720958,1749851442039,-420.0,0.00023231,2]
[365720960,1749851442048,-1969.85219627,0.00023245,8]
[365720962,1749851442058,-477.0,0.00023282,4]
[365720964,1749851442067,-2922.55,0.00023282,4]
[365720966,1749851442076,-460.0,0.00023282,4]
[365720968,1749851442086,-486.1,0.00023282,4]
[365720970,1749851442095,-772.81,0.00023283,4]
[365720972,1749851442105,-555.09,0.00023283,4]
[365720974,1749851442114,-742.63,0.00023283,4]
[365720976,1749851442123,-460.0,0.00023283,4]
[365720978,1749851442133,-663.68,0.00023283,4]
[365720980,1749851442142,-460.0,0.00023284,4]
[365720982,1749851442153,-460.0,0.00023284,4]
[365720984,1749851442163,-460.0,0.00023284,4]
[365720986,1749851442172,-460.0,0.00023284,4]
[365720988,1749851442181,-826.54,0.00023284,4]
[365720990,1749851442191,-158.8399287,0.00023288,2]
[365720992,1749851442201,-573.6747916,0.00023288,2]
[365720994,1749851442210,-176.9539549,0.00023288,2]
[365720996,1749851442219,-153.0,0.00023288,2]
[365720998,1749851442228,-176.9539549,0.00023288,2]
[365721000,1749851442238,-158.8399287,0.00023288,2]
[365721002,1749851442248,-573.6747916,0.00023288,2]
[365721003,1749851442259,-573.6747916,0.00023288,2]
[365721004,1749851442272,-158.5486917,0.00023288,2]
[365721005,1749851442282,-572.6273356,0.00023288,2]
[365721006,1749851442291,-153.0,0.00023288,2]
[365721007,1749851442300,-153.0,0.00023288,2]
[365721008,1749851442311,-306.0,0.00023288,2]
[365721009,1749851442320,-158.8399287,0.00023288,2]
[365721010,1749851442330,-496.0308855,0.00023288,2]
[365721011,1749851442340,-306.0,0.00023288,2]
[365721012,1749851442350,-1147.3495832,0.00023288,2]
[365721013,1749851442360,-153.0,0.00023288,2]
[365721014,1749851442369,-153.0,0.00023288,2]
[365721015,1749851442379,-306.0,0.00023309,2]
[365721016,1749851442388,-153.0,0.00023309,2]
[365721017,1749851442398,-153.0,0.00023309,2]
[365721018,1749851442407,-282.0,0.00023311,2]
[365721019,1749851442416,-1969.85219627,0.00023348,9]
[365721020,1749851442426,-438.26093489,0.00023391,2]
[365721021,1749851442436,-282.0,0.000234,2]
[365721022,1749851442446,-169.84845864,0.00023442,2]
[365721023,1749851442463,-1969.85219627,0.00023452,9]
[365721024,1749851442474,-1528.68,0.00023495,2]
[365721025,1749851442485,-5000.0,0.00023534,2]
[365721026,1749851442495,-282.0,0.00023535,2]
[365721027,1749851442505,-1969.85219627,0.00023555,9]
[365721028,1749851442515,-477.0,0.00023556,4]
[365721029,1749851442525,-2922.55,0.00023556,4]
[365721031,1749851442534,-460.0,0.00023556,4]
[365721032,1749851442544,-486.1,0.00023556,4]
[365721035,1749851442555,-772.81,0.00023557,4]
[365721036,1749851442564,-555.09,0.00023557,4]
[365721038,1749851442574,-742.63,0.00023557,4]
[365721040,1749851442583,-460.0,0.00023557,4]
[365721042,1749851442593,-663.68,0.00023557,4]
[365721044,1749851442602,-460.0,0.00023558,4]
[365721046,1749851442612,-460.0,0.00023558,4]
[365721048,1749851442621,-460.0,0.00023558,4]
[365721050,1749851442632,-460.0,0.00023558,4]
[365721052,1749851442652,-826.54,0.00023558,4]
[365721054,1749851442663,-200.0,0.00023561,4]
[365721057,1749851442673,-200.0,0.00023561,4]
[365721059,1749851442684,-200.0,0.00023561,4]
[365721061,1749851442694,-200.0,0.00023561,4]
[365721062,1749851442704,-200.0,0.00023561,4]
[365721065,1749851442714,-200.0,0.00023561,4]
[365721067,1749851442724,-200.0,0.00023561,4]
[365721069,1749851442736,-200.0,0.00023561,4]
[365721071,1749851442746,-155.87630225,0.00023647,2]
[365721073,1749851442756,-1969.85219627,0.00023659,9]
[365721075,1749851442766,-500.0,0.00023699,2]
[365721077,1749851442775,-218.41027163,0.00023699,2]
[365721079,1749851442785,-166.73694563,0.000237,2]
[365721081,1749851442795,-169.84845864,0.000237,2]
[365721083,1749851442804,-173.9379647,0.000237,4]
[365721085,1749851442814,-173.9379647,0.000237,4]
[365721087,1749851442823,-173.9379647,0.000237,4]
[365721089,1749851442836,-173.93,0.000237,4]
[365721091,1749851442846,-162.34210038,0.000237,4]
[365721093,1749851442855,-162.34210038,0.000237,4]
[365721095,1749851442865,-162.34210038,0.000237,4]
[365721097,1749851442874,-162.34210038,0.000237,4]
[365721099,1749851442883,-162.34210038,0.000237,4]
[365721101,1749851442892,-162.34210038,0.000237,4]
[365721103,1749851442902,-162.34210038,0.000237,4]
[365721105,1749851442911,-160.0,0.00023733,2]
[365721107,1749851442920,-162.34210038,0.00023736,4]
[365721109,1749851442930,-1969.85219627,0.00023762,9]
[365721111,1749851442939,-500.0,0.00023773,2]
[365721113,1749851442949,-500.0,0.00023773,2]
[365721115,1749851442959,-503.00566977,0.00023773,2]
[365721117,1749851442969,-500.0,0.00023773,2]
[365721119,1749851442979,-500.0,0.00023773,2]
[365721121,1749851442990,-500.91748917,0.00023773,2]
[365721123,1749851442999,-500.0,0.00023773,2]
[365721125,1749851443009,-500.0,0.00023773,2]
[365721127,1749851443019,-500.0,0.00023773,2]
[365721129,1749851443028,-500.0,0.00023773,2]
[365721131,1749851443037,-500.0,0.00023773,2]
[365721133,1749851443047,-500.0,0.00023773,2]
[365721135,1749851443056,-512.72178487,0.00023773,2]
[365721137,1749851443065,-500.0,0.00023773,2]
[365721140,1749851443075,-500.0,0.00023773,2]
[365721142,1749851443084,-500.0,0.00023773,2]
[365721144,1749851443093,-500.0,0.00023773,2]
[365721146,1749851443103,-500.0,0.00023773,2]
[365721148,1749851443112,-501.98508171,0.00023773,2]
[365721150,1749851443122,-500.0,0.00023773,2]
[365721152,1749851443131,-503.33767011,0.00023773,2]
[365721154,1749851443139,-220.41741011,0.00023773,2]
[365721156,1749851443149,-500.0,0.00023773,2]
[365721158,1749851443159,-500.0,0.00023773,2]
[365721160,1749851443168,-500.0,0.00023773,2]
[365721162,1749851443179,-500.0,0.00023773,2]
[365721164,1749851443188,-500.42355388,0.00023773,2]
[365721167,1749851443198,-500.0,0.00023773,2]
[365721169,1749851443207,-501.03912607,0.00023773,2]
[365721171,1749851443217,-500.0,0.00023773,2]
[365721173,1749851443226,-500.0,0.00023773,2]
[365721175,1749851443235,-500.0,0.00023773,2]
[365721177,1749851443245,-503.41766689,0.00023773,2]
[365721179,1749851443254,-240.58970932,0.00023773,2]
[365721181,1749851443264,-500.0,0.00023773,2]
[365721183,1749851443277,-500.0,0.00023773,2]
[365721185,1749851443286,-500.0,0.00023773,2]
[365721186,1749851443295,-500.0,0.00023773,2]
[365721188,1749851443305,-500.0,0.00023773,2]
[365721190,1749851443314,-500.0,0.00023773,2]
[365721192,1749851443323,-500.0,0.00023773,2]
[365721195,1749851443333,-600.0,0.00023773,2]
[365721196,1749851443343,-469222.15252437,0.0002378,5]
[365721199,1749851443354,-18545.50533502,0.000238,2]
[365721201,1749851443363,-6403.84352018,0.000238,2]
[365721203,1749851443375,-1009.65,0.000238,2]
[365721205,1749851443384,-41181.43651932,0.000238,2]
[365721207,1749851443394,-181494.30813374,0.000238,3]
[365721209,1749851443403,-160.0,0.000238,3]
[365721211,1749851443412,-229.78555783,0.000238,3]
[365721213,1749851443422,-4702.36367023,0.000238,2]
[365721215,1749851443431,-50625.22669065,0.000238,7]
[365721223,1749851443503,-176.9539549,0.00022466,2]
[365721225,1749851443512,-158.8399287,0.00022466,2]
[365721227,1749851443523,-43374.64330935,0.000238,7]
[365721229,1749851443532,-151.0,0.000238,9]
[365721231,1749851443542,-106872.36,0.000238,2]
[365721233,1749851443552,-160.0,0.000238,3]
[365721235,1749851443561,-160.0,0.000238,3]
[365721237,1749851443570,-835.28007164,0.000238,3]
[365721239,1749851443580,-424.32678023,0.000238,3]
[365721241,1749851443590,-477.0,0.0002383,4]
[365721243,1749851443600,-2922.55,0.0002383,4]
[365721245,1749851443610,-460.0,0.0002383,4]
[365721247,1749851443620,-486.1,0.0002383,4]
[365721249,1749851443630,-772.81,0.00023831,4]
[365721251,1749851443639,-555.09,0.00023831,4]
[365721253,1749851443648,-742.63,0.00023831,4]
[365721255,1749851443657,-460.0,0.00023831,4]
[365721257,1749851443668,-663.68,0.00023831,4]
[365721259,1749851443678,-460.0,0.00023832,4]
[365721261,1749851443688,-460.0,0.00023832,4]
[365721263,1749851443697,-460.0,0.00023832,4]
[365721265,1749851443707,-460.0,0.00023832,4]
[365721267,1749851443717,-826.54,0.00023832,4]
[365721269,1749851443726,-153.0,0.00023836,2]
[365721271,1749851443736,-153.0,0.00023836,2]
[365721273,1749851443747,-299.1700868,0.00023857,2]
[365721276,1749851443756,-153.0,0.00023857,2]
[365721278,1749851443768,-153.0,0.00023857,2]
[365721280,1749851443778,-456.7845961,0.00023862,2]
[365721282,1749851443788,-1969.85219627,0.00023866,10]
[365721284,1749851443798,-151.0,0.000239,10]
[365721286,1749851443809,-150.0,0.000239,2]
[365721289,1749851443818,-500.0,0.0002393,2]
[365721292,1749851443828,-500.0,0.0002393,2]
[365721295,1749851443837,-624.33181802,0.0002393,2]
[365721297,1749851443846,-1969.85219627,0.00023969,10]
[365721299,1749851443856,-729.7030954,0.00023973,2]
[365721301,1749851443865,-166.50369972,0.00023973,2]
[365721303,1749851443875,-166.50369971,0.00023973,2]
[365721305,1749851443886,-150.0,0.00023973,2]
[365721307,1749851443895,-162.34210038,0.00023978,4]
[365721309,1749851443904,-454.63,0.0002399,3]
[365721311,1749851443914,-569.34,0.0002399,3]
[365721313,1749851443924,-22327.64685544,0.00023998,2]
[365721315,1749851443934,-151.0,0.00023998,7]
[365721317,1749851443943,-151.0,0.00023998,7]
[365721319,1749851443952,-151.0,0.00024,7]
[365721330,1749851444053,-185.465816,0.00024,7]
[365721332,1749851444063,-151.0,0.00024,7]